fUSD/lending_fUSD_20240114
["ID","MTS","AMOUNT","RATE_DAILY","PERIOD"]
[311607023,1705264327074,-808.11,0.00032328,2]
[311607024,1705264327083,-2286.6,0.00032328,2]
[311607025,1705264327092,-918.48,0.00032328,2]
[311607026,1705264327101,-1602.23,0.00032328,2]
[311607027,1705264327110,-500.0,0.00032328,2]
[311607028,1705264327120,-732.92,0.00032328,2]
[311607029,1705264327129,-531.09,0.00032328,2]
[311607030,1705264327138,-567.37,0.00032328,2]
[311607031,1705264327150,-500.0,0.00032328,2]
[311607032,1705264327160,-2009.84,0.00032328,2]
[311607033,1705264327173,-1201.65,0.00032328,2]
[311607034,1705264327183,-1108.45,0.00032328,2]
[311607035,1705264327192,-4796.3,0.00032328,2]
[311607036,1705264327202,-512.33,0.00032328,2]
[311607037,1705264327213,-2156.48,0.00032328,2]
[311607038,1705264327222,-500.0,0.00032328,2]
[311607039,1705264327231,-596.78,0.00032328,2]
[311607040,1705264327241,-549.32,0.00032328,2]
[311607041,1705264327252,-2657.18,0.00032328,2]
[311607042,1705264327262,-723.46,0.00032328,2]
[311607043,1705264327272,-539.01,0.00032328,2]
[311607044,1705264327281,-1641.51,0.00032328,2]
[311607045,1705264327291,-500.0,0.00032328,2]
[311607046,1705264327300,-2203.79,0.00032328,2]
[311607047,1705264327309,-1057.67,0.00032328,2]
[311607048,1705264327318,-2139.26,0.00032328,2]
[311607049,1705264327328,-1109.41,0.00032328,2]
[311607050,1705264327337,-3320.2,0.00032328,2]
[311607051,1705264327346,-500.0,0.00032328,2]
[311607052,1705264327355,-450.0,0.000325,3]
[311607053,1705264327364,-157.54,0.000325,2]
[311607054,1705264327374,-157.54,0.000325,2]
[311607055,1705264327383,-300.17,0.000325,2]
[311607056,1705264327393,-300.17,0.000325,2]
[311607057,1705264327404,-300.17,0.000325,2]
[311607058,1705264327414,-300.17,0.000325,2]
[311607059,1705264327423,-300.17,0.000325,2]
[311607060,1705264327432,-300.17,0.000325,2]
[311607061,1705264327441,-300.17,0.000325,2]
[311607062,1705264327451,-300.17,0.000325,2]
[311607063,1705264327460,-300.17,0.000325,2]
[311607064,1705264327469,-300.17,0.000325,2]
[311607065,1705264327478,-300.17,0.000325,2]
[311607066,1705264327488,-300.17,0.000325,2]
[311607067,1705264327497,-300.17,0.000325,2]
[311607068,1705264327506,-300.17,0.000325,2]
[311607069,1705264327515,-300.17,0.000325,2]
[311607070,1705264327525,-300.17,0.000325,2]
[311607071,1705264327535,-300.17,0.000325,2]
[311607072,1705264327544,-300.17,0.000325,2]
[311607073,1705264327553,-300.17,0.000325,2]
[311607074,1705264327562,-300.17,0.000325,2]
[311607075,1705264327572,-300.17,0.000325,2]
[311607076,1705264327581,-300.17,0.000325,2]
[311607077,1705264327591,-300.17,0.000325,2]
[311607078,1705264327600,-300.17,0.000325,2]
[311607079,1705264327610,-815.77,0.00032507,2]
[311607080,1705264327619,-6843.16222768,0.00032548,2]
[311607081,1705264327628,-205.0,0.00032582,17]
[311607082,1705264327638,-13267.82,0.000326,2]
[311607083,1705264327648,-91080.01,0.000326,2]
[311607084,1705264327658,-32918.27,0.000326,2]
[311607085,1705264327668,-10823.65,0.000326,2]
[311607086,1705264327677,-108448.28,0.000326,2]
[311607087,1705264327686,-23670.69,0.000326,2]
[311607088,1705264327695,-28926.27,0.000326,2]
[311607089,1705264327705,-5453.22,0.000326,2]
[311607090,1705264327714,-159527.95,0.000326,2]
[311607091,1705264327723,-47206.93,0.000326,2]
[311607092,1705264327732,-60807.65,0.000326,2]
[311607093,1705264327742,-19960.0,0.000326,2]
[311607094,1705264327751,-3000.0,0.000326,2]
[311607095,1705264327760,-275.5,0.000326,2]
[311607096,1705264327769,-500.0,0.00032602,2]
[311607097,1705264327779,-500.0,0.00032602,2]
[311607098,1705264327787,-500.0,0.00032602,2]
[311607099,1705264327798,-500.0,0.00032602,2]
[311607100,1705264327807,-500.0,0.00032602,2]
[311607101,1705264327816,-500.0,0.00032602,2]
[311607102,1705264327825,-228.39011061,0.00032602,2]
[311607103,1705264327834,-500.0,0.00032602,2]
[311607104,1705264327843,-500.0,0.00032602,2]
[311607105,1705264327852,-522.7,0.00032602,2]
[311607106,1705264327861,-500.0,0.00032602,2]
[311607107,1705264327870,-500.0,0.00032602,2]
[311607108,1705264327880,-543.8,0.00032602,2]
[311607109,1705264327889,-500.0,0.00032602,2]
[311607110,1705264327900,-361.08290668,0.00032602,2]
[311607111,1705264327909,-518.27,0.00032602,2]
[311607112,1705264327918,-500.0,0.00032602,2]
[311607113,1705264327927,-512.56,0.00032602,2]
[311607114,1705264327937,-500.0,0.00032602,2]
[311607115,1705264327947,-528.06,0.00032602,2]
[311607116,1705264327956,-500.0,0.00032602,2]
[311607117,1705264327966,-538.04,0.00032602,2]
[311607118,1705264327975,-500.0,0.00032602,2]
[311607119,1705264327984,-500.0,0.00032602,2]
[311607120,1705264327994,-829.92,0.00032602,2]
[311607121,1705264328003,-500.0,0.00032602,2]
[311607122,1705264328012,-500.0,0.00032602,2]
[311607123,1705264328021,-831.82,0.00032602,2]
[311607124,1705264328030,-500.0,0.00032602,2]
[311607125,1705264328039,-753.34,0.00032602,2]
[311607126,1705264328048,-500.0,0.00032602,2]
[311607127,1705264328058,-716.55,0.00032602,2]
[311607128,1705264328067,-500.0,0.00032602,2]
[311607129,1705264328076,-500.0,0.00032602,2]
[311607130,1705264328086,-500.0,0.00032602,2]
[311607131,1705264328096,-549.71,0.00032602,2]
[311607132,1705264328105,-500.0,0.00032602,2]
[311607133,1705264328114,-534.55,0.00032602,2]
[311607134,1705264328124,-500.0,0.00032602,2]
[311607135,1705264328133,-500.0,0.00032602,2]
[311607136,1705264328144,-511.27,0.00032602,2]
[311607137,1705264328153,-554.03,0.00032602,2]
[311607138,1705264328164,-500.0,0.00032602,2]
[311607139,1705264328177,-500.0,0.00032602,2]
[311607140,1705264328186,-662.74,0.00032602,2]
[311607141,1705264328195,-590.75,0.00032602,2]
[311607142,1705264328204,-405.2501898,0.00032602,2]
[311607143,1705264328213,-500.0,0.00032602,2]
[311607144,1705264328223,-500.0,0.00032602,2]
[311607145,1705264328232,-500.0,0.00032602,2]
[311607146,1705264328241,-219.32566722,0.00032602,2]
[311607147,1705264328251,-852.63,0.00032602,2]
[311607148,1705264328260,-500.0,0.00032602,2]
[311607149,1705264328269,-500.0,0.00032602,2]
[311607150,1705264328279,-500.0,0.00032602,2]
[311607151,1705264328288,-500.0,0.00032602,2]
[311607152,1705264328297,-556.75,0.00032602,2]
[311607153,1705264328306,-500.0,0.00032602,2]
[311607154,1705264328315,-500.0,0.00032602,2]
[311607155,1705264328324,-500.0,0.00032602,2]
[311607156,1705264328333,-500.0,0.00032602,2]
[311607157,1705264328343,-584.84,0.00032602,2]
[311607158,1705264328352,-500.0,0.00032602,2]
[311607159,1705264328361,-955.59,0.00032602,2]
[311607160,1705264328370,-500.0,0.00032602,2]
[311607161,1705264328379,-500.0,0.00032602,2]
[311607162,1705264328388,-500.0,0.00032602,2]
[311607163,1705264328398,-904.67,0.00032602,2]
[311607164,1705264328407,-500.0,0.00032602,2]
[311607165,1705264328416,-500.0,0.00032602,2]
[311607166,1705264328425,-500.0,0.00032602,2]
[311607167,1705264328434,-500.0,0.00032602,2]
[311607168,1705264328443,-500.0,0.00032602,2]
[311607169,1705264328451,-508.74,0.00032602,2]
[311607170,1705264328461,-500.0,0.00032602,2]
[311607171,1705264328469,-501.92,0.00032602,2]
[311607172,1705264328478,-500.0,0.00032602,2]
[311607173,1705264328487,-502.98,0.00032602,2]
[311607174,1705264328496,-500.0,0.00032602,2]
[311607175,1705264328505,-549.05,0.00032602,2]
[311607176,1705264328514,-500.0,0.00032602,2]
[311607177,1705264328525,-500.0,0.00032602,2]
[311607178,1705264328534,-768.43,0.00032602,2]
[311607179,1705264328544,-500.0,0.00032602,2]
[311607180,1705264328552,-569.4117204,0.00032602,2]
[311607181,1705264328562,-733.75,0.00032602,2]
[311607182,1705264328571,-500.0,0.00032602,2]
[311607183,1705264328580,-1482.34,0.00032602,2]
[311607184,1705264328589,-355.16928621,0.00032602,2]
[311607185,1705264328598,-987.24,0.00032602,2]
[311607186,1705264328607,-500.0,0.00032602,2]
[311607187,1705264328616,-500.0,0.00032602,2]
[311607188,1705264328625,-500.0,0.00032602,2]
[311607189,1705264328634,-500.0,0.00032602,2]
[311607190,1705264328645,-500.0,0.00032602,2]
[311607191,1705264328654,-522.06,0.00032602,2]
[311607192,1705264328663,-500.0,0.00032602,2]
[311607193,1705264328672,-500.0,0.00032602,2]
[311607194,1705264328681,-500.0,0.00032602,2]
[311607195,1705264328691,-500.0,0.00032602,2]
[311607196,1705264328700,-902.15,0.00032602,2]
[311607197,1705264328710,-500.0,0.00032602,2]
[311607198,1705264328719,-500.0,0.00032602,2]
[311607199,1705264328729,-633.15,0.00032602,2]
[311607200,1705264328739,-500.0,0.00032602,2]
[311607201,1705264328748,-500.0,0.00032602,2]
[311607202,1705264328757,-733.43,0.00032602,2]
[311607203,1705264328766,-500.0,0.00032602,2]
[311607204,1705264328775,-500.0,0.00032602,2]
[311607205,1705264328784,-681.94,0.00032602,2]
[311607206,1705264328793,-500.0,0.00032602,2]
[311607207,1705264328802,-500.0,0.00032602,2]
[311607208,1705264328811,-861.38,0.00032602,2]
[311607209,1705264328820,-607.46,0.00032602,2]
[311607210,1705264328828,-871.23,0.00032602,2]
[311607211,1705264328838,-540.76,0.00032602,2]
[311607212,1705264328847,-731.62,0.00032602,2]
[311607213,1705264328856,-500.0,0.00032602,2]
[311607214,1705264328865,-500.0,0.00032602,2]
[311607215,1705264328874,-500.0,0.00032602,2]
[311607216,1705264328883,-500.0,0.00032602,2]
[311607217,1705264328894,-573.03,0.00032602,2]
[311607218,1705264328903,-500.0,0.00032602,2]
[311607219,1705264328912,-431.17947159,0.00032602,2]
[311607220,1705264328922,-500.0,0.00032602,2]
[311607221,1705264328931,-500.0,0.00032602,2]
[311607222,1705264328940,-541.18,0.00032602,2]
[311607223,1705264328949,-1043.04,0.00032602,2]
[311607224,1705264328958,-500.0,0.00032602,2]
[311607225,1705264328968,-524.14,0.00032602,2]
[311607226,1705264328977,-971.45,0.00032602,2]
[311607227,1705264328986,-720.76,0.00032602,2]
[311607228,1705264328996,-1331.65,0.00032602,2]
[311607229,1705264329005,-500.0,0.00032602,2]
[311607230,1705264329014,-500.0,0.00032602,2]
[311607231,1705264329023,-500.0,0.00032602,2]
[311607232,1705264329032,-887.35,0.00032602,2]
[311607233,1705264329041,-1632.65,0.00032602,2]
[311607234,1705264329050,-1287.99,0.00032602,2]
[311607235,1705264329059,-506.78765905,0.00032602,2]
[311607236,1705264329068,-500.0,0.00032602,2]
[311607237,1705264329077,-500.0,0.00032602,2]
[311607238,1705264329085,-500.0,0.00032602,2]
[311607239,1705264329095,-500.0,0.00032602,2]
[311607240,1705264329104,-568.32,0.00032602,2]
[311607241,1705264329113,-1075.72,0.00032602,2]
[311607242,1705264329122,-611.32,0.00032602,2]
[311607243,1705264329131,-1190.52,0.00032602,2]
[311607244,1705264329141,-966.98,0.00032602,2]
[311607245,1705264329151,-1150.22,0.00032602,2]
[311607246,1705264329161,-804.23,0.00032602,2]
[311607247,1705264329173,-500.0,0.00032602,2]
[311607248,1705264329182,-881.95,0.00032602,2]
[311607249,1705264329191,-255.56,0.00032602,2]
[311607250,1705264329200,-523.69,0.00032602,2]
[311607251,1705264329210,-604.18,0.00032602,2]
[311607252,1705264329219,-500.0,0.00032602,2]
[311607253,1705264329228,-737.47,0.00032602,2]
[311607254,1705264329238,-500.0,0.00032602,2]
[311607255,1705264329249,-816.74,0.00032602,2]
[311607256,1705264329258,-500.0,0.00032602,2]
[311607257,1705264329267,-500.0,0.00032602,2]
[311607258,1705264329277,-1018.42,0.00032602,2]
[311607259,1705264329287,-691.77,0.00032602,2]
[311607260,1705264329296,-500.0,0.00032602,2]
[311607261,1705264329305,-532.86,0.00032602,2]
[311607262,1705264329314,-500.0,0.00032602,2]
[311607263,1705264329324,-500.0,0.00032602,2]
[311607264,1705264329333,-500.0,0.00032602,2]
[311607265,1705264329342,-500.0,0.00032602,2]
[311607266,1705264329352,-500.0,0.00032602,2]
[311607267,1705264329361,-500.0,0.00032602,2]
[311607268,1705264329371,-624.45,0.00032602,2]
[311607269,1705264329382,-592.67,0.00032602,2]
[311607270,1705264329391,-500.0,0.00032602,2]
[311607271,1705264329400,-840.8,0.00032602,2]
[311607272,1705264329409,-1035.43,0.00032602,2]
[311607273,1705264329418,-901.33,0.00032602,2]
[311607274,1705264329428,-983.46,0.00032602,2]
[311607275,1705264329437,-500.0,0.00032602,2]
[311607276,1705264329446,-705.45,0.00032602,2]
[311607277,1705264329455,-500.0,0.00032602,2]
[311607278,1705264329465,-511.79,0.00032602,2]
[311607279,1705264329475,-531.03,0.00032602,2]
[311607280,1705264329484,-500.0,0.00032602,2]
[311607281,1705264329493,-583.5,0.00032602,2]
[311607282,1705264329502,-500.0,0.00032602,2]
[311607283,1705264329512,-652.55,0.00032602,2]
[311607284,1705264329521,-500.0,0.00032602,2]
[311607285,1705264329530,-519.09,0.00032602,2]
[311607286,1705264329539,-500.0,0.00032602,2]
[311607287,1705264329548,-603.94,0.00032602,2]
[311607288,1705264329557,-782.01,0.00032602,2]
[311607289,1705264329567,-919.27,0.00032602,2]
[311607290,1705264329577,-655.09,0.00032602,2]
[311607291,1705264329586,-848.01,0.00032602,2]
[311607292,1705264329596,-517.4304675,0.00032602,2]
[311607293,1705264329605,-300.0,0.00032602,2]
[311607294,1705264329615,-500.0,0.00032602,2]
[311607295,1705264329627,-500.0,0.00032602,2]
[311607296,1705264329637,-512.56,0.00032602,2]
[311607297,1705264329648,-912.72,0.00032602,2]
[311607298,1705264329660,-773.77,0.00032602,2]
[311607299,1705264329669,-932.74,0.00032602,2]
[311607300,1705264329678,-672.78,0.00032602,2]
[311607301,1705264329687,-500.0,0.00032602,2]
[311607302,1705264329696,-675.44,0.00032602,2]
[311607303,1705264329705,-592.65,0.00032602,2]
[311607304,1705264329715,-500.0,0.00032602,2]
[311607305,1705264329724,-812.07,0.00032602,2]
[311607306,1705264329733,-623.53,0.00032602,2]
[311607307,1705264329743,-500.0,0.00032602,2]
[311607308,1705264329752,-500.0,0.00032602,2]
[311607309,1705264329761,-584.39,0.00032602,2]
[311607310,1705264329771,-652.39,0.00032602,2]
[311607311,1705264329780,-901.97,0.00032602,2]
[311607312,1705264329790,-500.0,0.00032602,2]
[311607313,1705264329800,-500.0,0.00032602,2]
[311607314,1705264329809,-1030.54,0.00032602,2]
[311607315,1705264329819,-436.22345648,0.00032602,2]
[311607316,1705264329828,-1012.56,0.00032602,2]
[311607317,1705264329837,-763.69,0.00032602,2]
[311607318,1705264329848,-602.82,0.00032602,2]
[311607319,1705264329859,-500.0,0.00032602,2]
[311607320,1705264329869,-500.0,0.00032602,2]
[311607321,1705264329879,-525.95,0.00032602,2]
[311607322,1705264329888,-500.0,0.00032602,2]
[311607323,1705264329899,-500.0,0.00032602,2]
[311607324,1705264329908,-500.0,0.00032602,2]
[311607325,1705264329918,-507.67,0.00032602,2]
[311607326,1705264329928,-513.81,0.00032602,2]
[311607327,1705264329938,-636.62,0.00032602,2]
[311607328,1705264329948,-500.0,0.00032602,2]
[311607329,1705264329958,-902.91,0.00032602,2]
[311607330,1705264329967,-767.34,0.00032602,2]
[311607331,1705264329977,-1333.47,0.00032602,2]
[311607332,1705264329986,-500.0,0.00032602,2]
[311607333,1705264329996,-803.03,0.00032602,2]
[311607334,1705264330006,-500.0,0.00032602,2]
[311607335,1705264330016,-500.0,0.00032602,2]
[311607336,1705264330025,-638.06,0.00032602,2]
[311607337,1705264330035,-500.0,0.00032602,2]
[311607338,1705264330045,-536.45,0.00032602,2]
[311607339,1705264330054,-500.0,0.00032602,2]
[311607340,1705264330064,-598.26,0.00032602,2]
[311607341,1705264330074,-500.0,0.00032602,2]
[311607342,1705264330095,-661.41,0.00032602,2]
[311607343,1705264330106,-1303.11,0.00032602,2]
[311607344,1705264330116,-776.96,0.00032602,2]
[311607345,1705264330125,-500.0,0.00032602,2]
[311607346,1705264330137,-500.0,0.00032602,2]
[311607347,1705264330150,-619.53,0.00032602,2]
[311607348,1705264330162,-583.54,0.00032602,2]
[311607349,1705264330177,-1031.14,0.00032602,2]
[311607350,1705264330187,-668.9,0.00032602,2]
[311607351,1705264330198,-1069.22,0.00032602,2]
[311607352,1705264330207,-500.0,0.00032602,2]
[311607353,1705264330217,-500.0,0.00032602,2]
[311607354,1705264330227,-500.0,0.00032602,2]
[311607355,1705264330237,-522.71,0.00032602,2]
[311607356,1705264330249,-500.0,0.00032602,2]
[311607357,1705264330263,-500.0,0.00032602,2]
[311607358,1705264330273,-500.0,0.00032602,2]
[311607359,1705264330283,-623.93,0.00032602,2]
[311607360,1705264330294,-524.27,0.00032602,2]
[311607361,1705264330304,-1298.17,0.00032602,2]
[311607362,1705264330314,-500.0,0.00032602,2]
[311607363,1705264330324,-705.28,0.00032602,2]
[311607364,1705264330338,-553.43,0.00032602,2]
[311607365,1705264330350,-500.0,0.00032602,2]
[311607366,1705264330361,-779.76,0.00032602,2]
[311607367,1705264330371,-841.22,0.00032602,2]
[311607368,1705264330381,-594.72,0.00032602,2]
[311607369,1705264330391,-500.0,0.00032602,2]
[311607370,1705264330403,-754.6,0.00032602,2]
[311607371,1705264330413,-971.46,0.00032602,2]
[311607372,1705264330423,-663.62,0.00032602,2]
[311607373,1705264330433,-500.0,0.00032602,2]
[311607374,1705264330443,-500.0,0.00032602,2]
[311607375,1705264330454,-500.0,0.00032602,2]
[311607376,1705264330464,-500.0,0.00032602,2]
[311607377,1705264330474,-640.22,0.00032602,2]
[311607378,1705264330485,-880.9,0.00032602,2]
[311607379,1705264330495,-500.0,0.00032602,2]
[311607380,1705264330505,-1002.82,0.00032602,2]
[311607381,1705264330516,-668.12,0.00032602,2]
[311607382,1705264330526,-604.35,0.00032602,2]
[311607383,1705264330536,-690.19,0.00032602,2]
[311607384,1705264330547,-500.0,0.00032602,2]
[311607385,1705264330557,-500.0,0.00032602,2]
[311607386,1705264330568,-688.38,0.00032602,2]
[311607387,1705264330578,-619.28,0.00032602,2]
[311607388,1705264330589,-529.02,0.00032602,2]
[311607389,1705264330599,-779.6,0.00032602,2]
[311607390,1705264330610,-500.0,0.00032602,2]
[311607391,1705264330620,-1160.15,0.00032602,2]
[311607392,1705264330631,-1042.53,0.00032602,2]
[311607393,1705264330641,-500.0,0.00032602,2]
[311607394,1705264330653,-500.0,0.00032602,2]
[311607395,1705264330663,-500.0,0.00032602,2]
[311607396,1705264330674,-790.69,0.00032602,2]
[311607397,1705264330684,-684.1,0.00032602,2]
[311607398,1705264330694,-647.62,0.00032602,2]
[311607399,1705264330705,-500.0,0.00032602,2]
[311607400,1705264330716,-500.0,0.00032602,2]
[311607401,1705264330727,-500.0,0.00032602,2]
[311607402,1705264330739,-3167.32,0.00032602,2]
[311607403,1705264330750,-571.94,0.00032602,2]
[311607404,1705264330760,-567.97,0.00032602,2]
[311607405,1705264330771,-522.59,0.00032602,2]
[311607406,1705264330781,-500.0,0.00032602,2]
[311607407,1705264330792,-500.0,0.00032602,2]
[311607408,1705264330803,-774.9,0.00032602,2]
[311607409,1705264330814,-500.0,0.00032602,2]
[311607410,1705264330825,-1088.65,0.00032602,2]
[311607411,1705264330836,-500.0,0.00032602,2]
[311607412,1705264330847,-884.91,0.00032602,2]
[311607413,1705264330858,-537.49,0.00032602,2]
[311607414,1705264330868,-1154.9,0.00032602,2]
[311607415,1705264330878,-500.0,0.00032602,2]
[311607416,1705264330889,-500.0,0.00032602,2]
[311607417,1705264330900,-500.0,0.00032602,2]
[311607418,1705264330910,-766.25,0.00032602,2]
[311607419,1705264330920,-500.0,0.00032602,2]
[311607420,1705264330932,-500.0,0.00032602,2]
[311607421,1705264330943,-739.11,0.00032602,2]
[311607422,1705264330954,-500.0,0.00032602,2]
[311607423,1705264330964,-2842.79,0.00032602,2]
[311607424,1705264330975,-703.48,0.00032602,2]
[311607425,1705264330985,-500.0,0.00032602,2]
[311607426,1705264330996,-500.0,0.00032602,2]
[311607427,1705264331007,-755.21,0.00032602,2]
[311607428,1705264331017,-655.3,0.00032602,2]
[311607429,1705264331028,-500.0,0.00032602,2]
[311607430,1705264331039,-500.0,0.00032602,2]
[311607431,1705264331050,-649.3,0.00032602,2]
[311607432,1705264331060,-500.0,0.00032602,2]
[311607433,1705264331070,-1021.39,0.00032602,2]
[311607434,1705264331081,-250.15139916,0.00032602,2]
[311607435,1705264331091,-500.0,0.00032602,2]
[311607436,1705264331101,-1175.51,0.00032602,2]
[311607437,1705264331111,-500.0,0.00032602,2]
[311607438,1705264331122,-701.34,0.00032602,2]
[311607439,1705264331132,-1477.05,0.00032602,2]
[311607440,1705264331142,-686.32,0.00032602,2]
[311607441,1705264331153,-956.76,0.00032602,2]
[311607442,1705264331165,-500.0,0.00032602,2]
[311607443,1705264331177,-500.0,0.00032602,2]
[311607444,1705264331188,-500.0,0.00032602,2]
[311607445,1705264331199,-601.17,0.00032602,2]
[311607446,1705264331209,-1476.27,0.00032602,2]
[311607447,1705264331221,-500.0,0.00032602,2]
[311607448,1705264331232,-306.66669021,0.00032602,2]
[311607449,1705264331242,-1151.69,0.00032602,2]
[311607450,1705264331255,-1030.11,0.00032602,2]
[311607451,1705264331266,-815.37,0.00032602,2]
[311607452,1705264331277,-500.0,0.00032602,2]
[311607453,1705264331288,-500.0,0.00032602,2]
[311607454,1705264331298,-1060.69,0.00032602,2]
[311607455,1705264331308,-500.0,0.00032602,2]
[311607456,1705264331318,-500.0,0.00032602,2]
[311607457,1705264331328,-663.4,0.00032602,2]
[311607458,1705264331339,-500.0,0.00032602,2]
[311607459,1705264331349,-1567.33,0.00032602,2]
[311607460,1705264331359,-507.53,0.00032602,2]
[311607461,1705264331369,-690.39,0.00032602,2]
[311607462,1705264331379,-1087.14,0.00032602,2]
[311607463,1705264331390,-780.22,0.00032602,2]
[311607464,1705264331401,-1031.89,0.00032602,2]
[311607465,1705264331412,-314.51956394,0.00032602,2]
[311607466,1705264331423,-15692.02,0.00032602,2]
[311607467,1705264331434,-720.95,0.00032602,2]
[311607468,1705264331446,-968.33,0.00032602,2]
[311607469,1705264331458,-500.0,0.00032602,2]
[311607470,1705264331762,-4778.91,0.00032602,2]
[311607471,1705264331774,-4080.55,0.00032602,2]
[311607472,1705264331784,-500.0,0.00032602,2]
[311607473,1705264331793,-524.66,0.00032602,2]
[311607474,1705264331803,-1610.45,0.00032602,2]
[311607475,1705264331813,-1037.02,0.00032602,2]
[311607476,1705264331822,-500.0,0.00032602,2]
[311607477,1705264331832,-500.0,0.00032602,2]
[311607478,1705264331841,-512.48,0.00032602,2]
[311607479,1705264331850,-753.69,0.00032602,2]
[311607480,1705264331860,-819.18,0.00032602,2]
[311607481,1705264331869,-658.91,0.00032602,2]
[311607482,1705264331878,-500.0,0.00032602,2]
[311607483,1705264331888,-922.23,0.00032602,2]
[311607484,1705264331898,-1259.43,0.00032602,2]
[311607485,1705264331907,-908.29,0.00032602,2]
[311607486,1705264331917,-394.60281235,0.00032602,2]
[311607487,1705264331927,-500.0,0.00032602,2]
[311607488,1705264331938,-500.0,0.00032602,2]
[311607489,1705264331949,-1934.5,0.00032602,2]
[311607490,1705264331961,-500.0,0.00032602,2]
[311607491,1705264331970,-1783.71,0.00032602,2]
[311607492,1705264331979,-1552.56,0.00032602,2]
[311607493,1705264331989,-500.0,0.00032602,2]
[311607494,1705264331998,-813.78,0.00032602,2]
[311607495,1705264332007,-508.7,0.00032602,2]
[311607496,1705264332017,-1672.88,0.00032602,2]
[311607497,1705264332027,-887.69,0.00032602,2]
[311607498,1705264332037,-1249.33,0.00032602,2]
[311607499,1705264332046,-1426.72,0.00032602,2]
[311607500,1705264332056,-1118.87,0.00032602,2]
[311607501,1705264332065,-5627.11,0.00032602,2]
[311607502,1705264332075,-1369.47,0.00032602,2]
[311607503,1705264332085,-575.47,0.00032602,2]
[311607504,1705264332094,-570.84,0.00032602,2]
[311607505,1705264332104,-567.98,0.00032602,2]
[311607506,1705264332115,-552.23,0.00032602,2]
[311607507,1705264332125,-599.67,0.00032602,2]
[311607508,1705264332135,-500.0,0.00032602,2]
[311607509,1705264332145,-682.29,0.00032602,2]
[311607510,1705264332154,-2554.34,0.00032602,2]
[311607511,1705264332164,-799.56,0.00032602,2]
[311607512,1705264332177,-1153.92,0.00032602,2]
[311607513,1705264332186,-1798.17,0.00032602,2]
[311607514,1705264332196,-609.22336306,0.00032602,2]
[311607515,1705264332206,-2674.9,0.00032602,2]
[311607516,1705264332216,-4747.99,0.00032602,2]
[311607517,1705264332228,-874.04,0.00032602,2]
[311607518,1705264332237,-500.0,0.00032602,2]
[311607519,1705264332247,-3082.22,0.00032602,2]
[311607520,1705264332257,-500.0,0.00032602,2]
[311607521,1705264332267,-522.44,0.00032602,2]
[311607522,1705264332277,-1501.1,0.00032602,2]